bitfinex/quotes_BTCUSD_20250316
["timestamp","ask_amount","ask_price","bid_price","bid_amount"]
[1742136222507,0.00444117,83208.0,83204.0,0.241373]
[1742136222689,0.00444117,83208.0,83205.0,0.240367]
[1742136223703,0.00444117,83208.0,83204.0,0.001]
[1742136223912,0.00444117,83208.0,83203.0,0.014356]
[1742136224333,0.00444117,83208.0,83205.0,0.001]
[1742136224742,0.00444117,83208.0,83206.0,0.240365]
[1742136224954,0.00444117,83208.0,83206.0,0.252383]
[1742136226716,0.00444117,83208.0,83206.0,0.254383]
[1742136227244,0.00444117,83208.0,83206.0,0.255383]
[1742136229010,0.02328504,83208.0,83206.0,0.255383]
[1742136229216,0.02328504,83208.0,83206.0,0.243365]
[1742136229667,0.26364804,83208.0,83206.0,0.003]
[1742136229878,0.0303077,83209.0,83206.0,0.003]
[1742136230074,0.01568971,83207.0,83206.0,0.003]
[1742136230252,0.007018,83207.0,83206.0,0.003]
[1742136230454,0.01068971,83207.0,83206.0,0.003]
[1742136230809,0.0471863,83207.0,83206.0,0.003]
[1742136231131,0.31068971,83207.0,83206.0,0.002]
[1742136231341,0.36198971,83207.0,83206.0,0.002]
[1742136231672,0.252391,83204.0,83203.0,0.000338]
[1742136231880,0.552391,83204.0,83203.0,0.000338]
[1742136232059,0.55606058,83204.0,83203.0,0.000338]
[1742136232995,0.60736058,83204.0,83203.0,0.000338]
[1742136233198,0.65160664,83204.0,83203.0,0.000338]
[1742136233395,0.65660664,83204.0,83203.0,0.000338]
[1742136233948,0.240434,83183.0,83178.0,0.240445]
[1742136234173,0.240434,83183.0,83178.0,0.24056885]
[1742136234338,0.00366242,83182.0,83178.0,0.24056885]
[1742136234557,0.00366242,83182.0,83178.0,0.25259085]
[1742136234748,0.252467,83179.0,83178.0,0.00012385]
[1742136234922,0.56235926,83179.0,83178.0,0.00012385]
[1742136235143,0.5660233,83179.0,83178.0,0.00212385]
[1742136235344,0.3135563,83179.0,83178.0,0.00212385]
[1742136236141,0.3135563,83179.0,83178.0,0.00312385]
[1742136236641,0.3135563,83179.0,83178.0,0.00112385]
[1742136236844,0.3135563,83179.0,83178.0,0.00412385]
[1742136237249,0.3135563,83179.0,83178.0,0.00112385]
[1742136237473,0.3135563,83179.0,83178.0,0.00212385]
[1742136237789,0.3255783,83179.0,83178.0,0.00212385]
[1742136238553,0.3255783,83179.0,83178.0,0.25459385]
[1742136238554,0.0135563,83179.0,83178.0,0.25459385]
[1742136238751,0.16096705,83190.0,83182.0,0.012021]
[1742136238985,0.3135225,83189.0,83184.0,0.240428]
[1742136239269,0.3135225,83189.0,83186.0,0.240423]
[1742136239474,0.3135225,83189.0,83188.0,0.252439]
[1742136240217,0.0155225,83189.0,83188.0,0.252439]
[1742136240634,0.0175225,83189.0,83188.0,0.252439]
[1742136241011,0.0155225,83189.0,83188.0,0.252439]
[1742136241608,0.0135225,83189.0,83188.0,0.252439]
[1742136241814,0.0155225,83189.0,83188.0,0.01202]
[1742136242029,0.0155225,83189.0,83186.0,0.252444]
[1742136242404,0.0135225,83189.0,83186.0,0.252444]
[1742136242612,0.0135225,83189.0,83188.0,0.01202]
[1742136245457,0.0136916,83189.0,83187.0,0.252441]
[1742136245861,0.0136916,83189.0,83188.0,0.01202]
[1742136247828,0.0136916,83189.0,83187.0,0.012021]
[1742136248035,0.012021,83184.0,83177.0,0.240448]
[1742136248236,0.240436,83183.0,83179.0,0.0123602]
[1742136248436,0.252448,83186.0,83182.0,0.240435]
[1742136248670,0.240429,83185.0,83180.0,0.252462]
[1742136249129,0.25245,83185.0,83180.0,0.252462]
[1742136249415,0.540433,83184.0,83180.0,0.252462]
[1742136250083,0.3,83184.0,83180.0,0.252462]
[1742136250545,0.3,83184.0,83180.0,0.012022]
[1742136251351,0.3,83182.0,83179.0,0.2407822]
[1742136251721,0.00366874,83181.0,83179.0,0.2407822]
[1742136252137,0.00985222,83180.0,83179.0,0.2407822]
[1742136252612,0.00985222,83180.0,83179.0,0.2417822]
[1742136253231,0.25029422,83180.0,83175.0,0.240455]
[1742136253435,0.012022,83179.0,83170.0,0.012023]
[1742136253638,0.35467949,83179.0,83164.0,0.1241]
[1742136253819,0.3645288,83179.0,83164.0,0.136124]
[1742136254161,0.32187131,83179.0,83166.0,0.252504]
[1742136254313,0.32187131,83179.0,83168.0,0.2408132]
[1742136254775,0.32187131,83179.0,83168.0,0.0003382]
[1742136254957,0.34640718,83179.0,83178.0,0.00112385]
[1742136255137,0.34640718,83179.0,83178.0,0.00012385]
[1742136255723,0.34640718,83179.0,83178.0,0.00112385]
[1742136256390,0.34640718,83179.0,83178.0,0.00012385]
[1742136256564,0.34740718,83179.0,83178.0,0.00012385]
[1742136257491,0.34840718,83179.0,83178.0,0.00012385]
[1742136257723,0.34840718,83179.0,83168.0,0.0003382]
[1742136257724,0.552497,83169.0,83168.0,0.0003382]
[1742136258096,0.56228222,83169.0,83168.0,0.0003382]
[1742136259300,0.30978522,83169.0,83168.0,0.0003382]
[1742136259631,0.32180822,83169.0,83168.0,0.0003382]
[1742136259764,0.30978522,83169.0,83168.0,0.0003382]
[1742136260171,0.32761933,83169.0,83168.0,0.0003382]
[1742136260823,0.33964233,83169.0,83168.0,0.0003382]
[1742136261139,0.34647111,83169.0,83168.0,0.0003382]
[1742136261649,0.34547111,83169.0,83168.0,0.0003382]
[1742136262004,0.32661933,83169.0,83168.0,0.0003382]
[1742136263168,0.33558266,83169.0,83168.0,0.0003382]
[1742136263369,0.33558266,83169.0,83168.0,0.0123612]
[1742136264174,0.33558266,83169.0,83168.0,0.0003382]
[1742136264976,0.35443449,83169.0,83168.0,0.0003382]
[1742136265298,0.60693149,83169.0,83168.0,0.0003382]
[1742136265492,0.69407614,83169.0,83168.0,0.0003382]
[1742136265721,0.60693149,83169.0,83168.0,0.0003382]
[1742136266487,0.60825328,83169.0,83168.0,0.0003382]
[1742136270318,0.240496,83162.0,83158.0,0.2188432]
[1742136270453,0.140496,83162.0,83158.0,0.21925661]
[1742136270653,0.140496,83162.0,83158.0,0.00041341]
[1742136270842,0.25166432,83161.0,83158.0,0.00041341]
[1742136271043,0.26368832,83161.0,83158.0,0.00041341]
[1742136271295,0.25166432,83161.0,83158.0,0.00041341]
[1742136271514,0.01116632,83161.0,83158.0,0.24091741]
[1742136271881,0.01116632,83161.0,83158.0,0.00141341]
[1742136272115,0.25166432,83161.0,83158.0,0.00141341]
[1742136272343,0.240501,83160.0,83158.0,0.00141341]
[1742136272767,0.012025,83159.0,83158.0,0.00041341]
[1742136273201,0.012025,83159.0,83158.0,0.00241341]
[1742136273673,0.012025,83159.0,83158.0,0.00141341]
[1742136273819,0.012025,83159.0,83158.0,0.00041341]
[1742136274255,0.012025,83159.0,83158.0,0.00141341]
[1742136274468,0.0218722,83159.0,83158.0,0.00141341]
[1742136274764,0.0098472,83159.0,83158.0,0.00141341]
[1742136274952,0.04576972,83159.0,83158.0,0.00141341]
[1742136275771,0.04576972,83159.0,83158.0,0.00241341]
[1742136276145,0.04576972,83159.0,83158.0,0.00141341]
[1742136276606,0.04576972,83159.0,83158.0,0.00241341]
[1742136277447,0.252531,83158.0,83152.0,0.28116141]
[1742136277727,0.252549,83153.0,83144.0,0.252572]
[1742136277900,0.252549,83153.0,83145.0,0.252568]
[1742136278081,0.00975918,83152.0,83150.0,0.240528]
[1742136278284,0.252542,83155.0,83150.0,0.252554]
[1742136278487,0.00975043,83151.0,83150.0,0.252554]
[1742136278683,0.252542,83155.0,83150.0,0.252554]
[1742136278886,0.00975043,83151.0,83150.0,0.252554]
[1742136279115,0.240517,83155.0,83152.0,0.240523]
[1742136279317,0.012025,83156.0,83152.0,0.241523]
[1742136279731,0.01885428,83156.0,83153.0,0.240518]
[1742136280492,0.252535,83157.0,83152.0,0.252549]
[1742136280714,0.240513,83156.0,83152.0,0.252549]
[1742136281418,0.240519,83154.0,83150.0,0.252554]
[1742136281747,0.01187875,83153.0,83150.0,0.252554]
[1742136281897,0.01187875,83153.0,83150.0,0.254554]
[1742136282099,0.01187875,83153.0,83152.0,0.0003382]
[1742136282677,0.01187875,83153.0,83152.0,0.0013382]
[1742136282895,0.01187875,83153.0,83152.0,0.0003382]
[1742136284662,0.01187875,83153.0,83152.0,0.0123642]
[1742136284891,0.0307331,83153.0,83152.0,0.0123642]
[1742136285091,0.0307331,83153.0,83152.0,0.0143642]
[1742136286065,0.0307331,83153.0,83152.0,0.0163642]
[1742136288430,0.3,83161.0,83154.0,0.012025]
[1742136288621,0.252532,83158.0,83153.0,0.012026]
[1742136289379,0.02394962,83160.0,83155.0,0.240512]
[1742136289619,0.26445062,83160.0,83154.0,0.252542]
[1742136290353,0.02394962,83160.0,83155.0,0.240512]
[1742136290590,0.26445062,83160.0,83155.0,0.240512]
[1742136291109,0.27647562,83160.0,83154.0,0.012025]
[1742136291434,0.27647562,83160.0,83154.0,0.252541]
[1742136291815,0.01885342,83159.0,83154.0,0.252541]
[1742136292741,0.27138242,83159.0,83153.0,0.252544]
[1742136293408,0.01885342,83159.0,83156.0,0.240509]
[1742136293741,0.01885342,83159.0,83157.0,0.240507]
[1742136293885,0.01885342,83159.0,83156.0,0.012025]
[1742136294695,0.01885342,83159.0,83153.0,0.252544]
[1742136295095,0.00813742,83158.0,83153.0,0.252544]
[1742136295295,0.00813742,83158.0,83154.0,0.240516]
[1742136295712,0.00813742,83158.0,83155.0,0.240512]
[1742136295914,0.00058326,83157.0,83155.0,0.240512]
[1742136296398,0.00058326,83157.0,83155.0,0.252537]
[1742136298032,0.00058326,83157.0,83155.0,0.253537]
[1742136298642,0.00813478,83156.0,83155.0,0.253537]
[1742136299205,0.00813478,83156.0,83155.0,0.001]
[1742136299923,0.240507,83158.0,83155.0,0.001]
[1742136300120,0.25935642,83159.0,83154.0,0.240516]
[1742136300431,0.01885342,83159.0,83155.0,0.012025]
[1742136300789,0.01885342,83159.0,83155.0,0.001]
[1742136300966,0.25935842,83159.0,83155.0,0.001]
[1742136301307,0.25935842,83159.0,83154.0,0.240516]
[1742136301596,0.25935842,83159.0,83155.0,0.001]
[1742136302015,0.25935842,83159.0,83154.0,0.240516]
[1742136302213,0.24774697,83158.0,83154.0,0.240516]
[1742136302450,0.00723997,83158.0,83155.0,0.240512]
[1742136303250,0.00723997,83158.0,83156.0,0.24051]
[1742136304213,0.00723997,83158.0,83155.0,0.252537]
[1742136304610,0.00723997,83158.0,83157.0,0.252533]
[1742136304813,0.00723997,83158.0,83155.0,0.012025]
[1742136304814,0.00723997,83158.0,83156.0,0.24051]
[1742136304994,0.00723997,83158.0,83157.0,0.082]
[1742136305197,0.00723997,83158.0,83157.0,0.094025]
[1742136305597,0.0001692,83160.0,83158.0,0.252531]
[1742136305836,0.0001692,83160.0,83159.0,0.012025]
[1742136307431,0.0001692,83160.0,83159.0,0.142425]
[1742136309052,0.0001692,83160.0,83159.0,0.144425]
[1742136310504,0.0001692,83160.0,83159.0,0.147425]
[1742136311055,0.0001692,83160.0,83159.0,0.1354]
[1742136311331,0.01819675,83160.0,83159.0,0.005]
[1742136311722,0.07053073,83160.0,83159.0,0.005]
[1742136312333,0.37053073,83160.0,83159.0,0.005]
[1742136312960,0.37053073,83160.0,83159.0,0.003]
[1742136313170,0.012025,83156.0,83155.0,0.0003384]
[1742136313374,0.252536,83156.0,83155.0,0.0003384]
[1742136313596,0.25853378,83156.0,83155.0,0.0003384]
[1742136314402,0.25853378,83156.0,83155.0,0.0013384]
[1742136315162,0.25853378,83156.0,83155.0,0.0023384]
[1742136315756,0.37810881,83156.0,83155.0,0.0023384]
[1742136315989,0.55853378,83156.0,83155.0,0.0023384]
[1742136318488,0.55853378,83156.0,83155.0,0.0013384]
[1742136318698,0.55853378,83156.0,83155.0,0.0003384]
[1742136319111,0.56053378,83156.0,83155.0,0.0003384]
[1742136319302,0.30799778,83156.0,83155.0,0.0003384]
[1742136319666,0.32002278,83156.0,83155.0,0.0003384]
[1742136319867,0.30999778,83156.0,83155.0,0.0003384]
[1742136320294,0.240508,83158.0,83155.0,0.0003384]
[1742136320494,0.24051,83157.0,83155.0,0.0003384]
[1742136320654,0.012025,83156.0,83155.0,0.0003384]
[1742136322983,0.24051,83157.0,83155.0,0.0003384]
[1742136323293,0.253533,83158.0,83155.0,0.0003384]
[1742136323695,0.252533,83158.0,83155.0,0.0003384]
[1742136325319,0.001,83157.0,83155.0,0.0003384]
[1742136325447,0.253535,83157.0,83155.0,0.0003384]
[1742136325648,0.01196522,83156.0,83155.0,0.0003384]
[1742136326246,0.41105645,83159.0,83157.0,0.012025]
[1742136326544,0.02432958,83160.0,83158.0,0.252531]
[1742136326755,0.02432958,83160.0,83158.0,0.251531]
[1742136327186,0.02432958,83160.0,83157.0,0.299332]
[1742136327588,0.02432958,83160.0,83159.0,0.012025]
[1742136327589,0.0001692,83160.0,83159.0,0.012025]
[1742136328617,0.0011692,83160.0,83159.0,0.012025]
[1742136329225,0.0011692,83160.0,83159.0,0.013025]
[1742136330022,0.0001692,83160.0,83159.0,0.013025]
[1742136330318,0.0001692,83160.0,83159.0,0.014025]
[1742136331816,0.0001692,83160.0,83159.0,0.095625]
[1742136340848,0.0001692,83160.0,83159.0,0.0836]
[1742136342275,0.0121942,83160.0,83159.0,0.002]
[1742136342615,0.11322793,83160.0,83159.0,0.002]
[1742136342728,0.0121942,83160.0,83159.0,0.002]
[1742136343347,0.03473991,83160.0,83159.0,0.001]
[1742136343588,0.252528,83159.0,83158.0,0.0003384]
[1742136344388,0.02271491,83160.0,83158.0,0.0003384]
[1742136344710,0.0001692,83160.0,83158.0,0.0003384]
[1742136344914,0.0001692,83160.0,83158.0,0.0013384]
[1742136345512,0.0001692,83160.0,83158.0,0.0003384]
[1742136345922,0.2406712,83160.0,83158.0,0.0013384]
[1742136346145,0.2526962,83160.0,83158.0,0.0003384]
[1742136346867,0.2526962,83160.0,83158.0,0.0013384]
[1742136347088,0.02254744,83159.0,83158.0,0.0013384]
[1742136347314,0.02254744,83159.0,83158.0,0.0901634]
[1742136348048,0.02254744,83159.0,83158.0,0.0891634]
[1742136348447,0.0001692,83160.0,83158.0,0.0891634]
[1742136348448,0.0001692,83160.0,83159.0,0.252528]
[1742136350180,0.0001692,83160.0,83158.0,0.0771384]
[1742136350341,0.3001692,83160.0,83158.0,0.0771384]
[1742136351255,0.3001692,83160.0,83159.0,0.001]
[1742136351450,0.0001692,83160.0,83159.0,0.001]
[1742136351670,0.0001692,83160.0,83159.0,0.057625]
[1742136352095,0.0001692,83160.0,83159.0,0.134425]
[1742136353671,0.0001692,83160.0,83159.0,0.13662742]
[1742136353879,0.0001692,83160.0,83159.0,0.135425]
[1742136354083,0.0001692,83160.0,83159.0,0.129425]
[1742136354503,0.0001692,83160.0,83159.0,0.133425]
[1742136354959,0.0001692,83160.0,83159.0,0.136425]
[1742136363575,0.0001692,83160.0,83159.0,0.007]
[1742136363973,0.0121942,83160.0,83159.0,0.007]
[1742136364197,0.08797733,83160.0,83159.0,0.007]
[1742136364351,0.0121942,83160.0,83159.0,0.007]
[1742136364553,0.0121942,83160.0,83159.0,0.004]
[1742136365078,0.252528,83159.0,83158.0,0.0003384]
[1742136367402,0.252528,83159.0,83158.0,0.0013384]
[1742136367611,0.252528,83159.0,83158.0,0.0023384]
[1742136368619,0.33194865,83159.0,83158.0,0.0023384]
[1742136368937,0.63194865,83159.0,83158.0,0.0023384]
[1742136369551,0.24053,83150.0,83145.0,0.235583]
[1742136369698,0.252556,83150.0,83145.0,0.235583]
[1742136369896,0.240533,83149.0,83145.0,0.235583]
[1742136370110,0.240533,83149.0,83145.0,0.223556]
[1742136370649,0.252559,83149.0,83143.0,0.318147]
[1742136371019,0.252559,83149.0,83144.0,0.252571]
[1742136371216,0.240536,83148.0,83145.0,0.002]
[1742136371421,0.252565,83147.0,83145.0,0.002]
[1742136371704,0.012027,83146.0,83145.0,0.002]
[1742136371903,0.012027,83146.0,83137.0,0.0003382]
[1742136371904,0.252591,83138.0,83137.0,0.0003382]
[1742136372050,0.3240609,83146.0,83138.0,0.012028]
[1742136372258,0.3,83146.0,83145.0,0.012027]
[1742136372473,0.41105645,83158.0,83149.0,0.012026]
[1742136372648,0.3,83157.0,83155.0,0.240513]
[1742136372837,0.3,83159.0,83155.0,0.240513]
[1742136373484,0.312025,83159.0,83153.0,0.252545]
[1742136373800,0.02470234,83156.0,83154.0,0.25254]
[1742136373997,0.02470234,83156.0,83155.0,0.012025]
[1742136374914,0.02470234,83156.0,83154.0,0.012025]
[1742136375283,0.03972734,83156.0,83148.0,0.25256]
[1742136375581,0.35023396,83156.0,83153.0,0.240517]
[1742136375742,0.35023396,83156.0,83153.0,0.252543]
[1742136375944,0.35023396,83156.0,83154.0,0.25254]
[1742136376170,0.35023396,83156.0,83154.0,0.012025]
[1742136376370,0.02253162,83155.0,83154.0,0.012025]
[1742136377469,0.02553162,83155.0,83154.0,0.012025]
[1742136377897,0.02553162,83155.0,83152.0,0.252548]
[1742136378099,0.02753162,83155.0,83152.0,0.252548]
[1742136378882,0.02453162,83155.0,83152.0,0.252548]
[1742136379121,0.02453162,83155.0,83153.0,0.240518]
[1742136379329,0.02253162,83154.0,83153.0,0.252544]
[1742136380209,0.27507362,83154.0,83148.0,0.240533]
[1742136380412,0.012026,83153.0,83147.0,0.0463]
[1742136380615,0.03455662,83154.0,83148.0,0.240534]
[1742136380942,0.02253162,83154.0,83151.0,0.25255]
[1742136381138,0.02753162,83154.0,83151.0,0.25255]
[1742136381349,0.02453162,83154.0,83151.0,0.25255]
[1742136381694,0.002,83153.0,83151.0,0.25255]
[1742136381903,0.02253162,83154.0,83151.0,0.25255]
[1742136382253,0.02253162,83153.0,83152.0,0.240521]
[1742136384733,0.02453162,83153.0,83150.0,0.240526]
[1742136384937,0.02653162,83153.0,83150.0,0.240526]
[1742136385340,0.02653162,83153.0,83151.0,0.240524]
[1742136385540,0.02253162,83153.0,83151.0,0.25255]
[1742136385904,0.02453162,83153.0,83152.0,0.092426]
[1742136386260,0.02253162,83153.0,83152.0,0.139926]
[1742136386464,0.0001692,83155.0,83154.0,0.012025]
[1742136386661,0.0001692,83155.0,83154.0,0.14112745]
[1742136386861,0.0001692,83155.0,83154.0,0.139925]
[1742136387101,0.0001692,83155.0,83154.0,0.13912743]
[1742136388023,0.0001692,83155.0,83154.0,0.14212743]
[1742136388327,0.0001692,83155.0,83154.0,0.138925]
[1742136388661,0.0001692,83155.0,83154.0,0.135925]
[1742136388986,0.0001692,83155.0,83154.0,0.144925]
[1742136392198,0.0001692,83155.0,83154.0,0.14612735]
[1742136393181,0.0001692,83155.0,83154.0,0.1606682]
[1742136393182,2e-07,83155.0,83154.0,0.1606682]
[1742136393390,0.58196002,83190.0,83185.0,0.012021]
[1742136393605,0.5820013,83190.0,83189.0,0.01202]
[1742136393817,0.5820013,83190.0,83184.0,0.240429]
[1742136393818,0.01553535,83190.0,83184.0,0.240429]
[1742136394013,0.240416,83189.0,83183.0,0.012021]
[1742136394245,0.240416,83189.0,83184.0,0.240429]
[1742136394449,0.01202,83189.0,83184.0,0.25245]
[1742136394647,0.02855535,83190.0,83184.0,0.25245]
[1742136394846,0.01653535,83190.0,83186.0,0.252443]
[1742136397430,4.128e-05,83190.0,83189.0,0.252436]
[1742136397579,4.128e-05,83190.0,83189.0,0.378636]
[1742136397908,0.252384,83207.0,83189.0,0.380636]
[1742136398054,0.312018,83206.0,83200.0,0.252403]
[1742136398255,0.25239,83205.0,83200.0,0.252403]
[1742136398647,0.012018,83205.0,83200.0,0.252403]
[1742136398950,0.240379,83202.0,83197.0,0.252412]
[1742136399159,0.02736414,83205.0,83199.0,0.252404]
[1742136399334,0.012018,83205.0,83199.0,0.252404]
[1742136399492,0.012018,83204.0,83197.0,0.252411]
[1742136399970,0.252393,83204.0,83199.0,0.240387]
[1742136400187,0.240378,83202.0,83197.0,0.252411]
[1742136400323,0.012019,83199.0,83189.0,0.1262]
[1742136400524,0.25241,83198.0,83192.0,0.01202]
[1742136400725,0.25241,83198.0,83192.0,0.252425]
[1742136400955,0.25241,83198.0,83193.0,0.01202]
[1742136401153,0.012019,83197.0,83191.0,0.01202]
[1742136401353,0.01202,83193.0,83187.0,0.252443]
[1742136401553,0.01202,83192.0,83186.0,0.240423]
[1742136401735,0.01202,83192.0,83187.0,0.24042]
[1742136402114,0.01202,83192.0,83187.0,0.252441]
[1742136402434,0.252426,83193.0,83188.0,0.240417]
[1742136402851,0.012021,83185.0,83183.0,0.0765]
[1742136403048,0.012021,83185.0,83180.0,0.012022]
[1742136403535,0.252451,83185.0,83180.0,0.252464]
[1742136403980,0.240434,83183.0,83178.0,0.315446]
[1742136404181,0.240434,83183.0,83180.0,0.001]
[1742136404485,0.240439,83181.0,83180.0,0.001]
[1742136404650,0.25246,83181.0,83180.0,0.001]
[1742136404859,0.240464,83173.0,83167.0,0.2525]
[1742136405465,0.240469,83171.0,83166.0,0.24048]
[1742136405674,0.012023,83169.0,83164.0,0.075]
[1742136405878,0.012025,83160.0,83155.0,0.240513]
[1742136406077,0.16084119,83174.0,83154.0,0.0753384]
[1742136406078,0.012023,83167.0,83154.0,0.0753384]
[1742136406279,0.012025,83159.0,83154.0,0.07546232]
[1742136406476,0.26774416,83159.0,83154.0,0.00046232]
[1742136406855,0.25571916,83159.0,83154.0,0.25300232]
[1742136407062,0.01521516,83159.0,83157.0,0.240506]
[1742136407324,0.012024,83163.0,83157.0,0.252531]
[1742136407519,0.012024,83163.0,83158.0,0.252528]
[1742136407736,0.01509773,83163.0,83159.0,0.252525]
[1742136407874,0.240496,83162.0,83157.0,0.012025]
[1742136408070,0.240496,83162.0,83157.0,0.252531]
[1742136408550,0.240496,83162.0,83157.0,0.013025]
[1742136408912,0.240496,83162.0,83157.0,0.012025]
[1742136409108,0.240496,83162.0,83157.0,0.014025]
[1742136409309,0.240499,83161.0,83157.0,0.002]
[1742136409516,0.012025,83158.0,83157.0,0.002]
[1742136410843,0.012025,83158.0,83157.0,0.003]
[1742136411259,0.012025,83158.0,83157.0,0.006]
[1742136411433,0.012025,83158.0,83157.0,0.003]
[1742136411636,0.09170658,83158.0,83157.0,0.003]
[1742136411836,0.39170658,83158.0,83157.0,0.004]
[1742136412630,0.312025,83158.0,83157.0,0.001]
[1742136413037,0.312025,83158.0,83157.0,0.002]
[1742136413239,0.312025,83158.0,83157.0,0.001]
[1742136413442,0.012025,83155.0,83154.0,0.00046232]
[1742136413907,0.552539,83155.0,83154.0,0.00046232]
[1742136414606,0.552539,83155.0,83154.0,0.00146232]
[1742136417153,0.3,83155.0,83154.0,0.00146232]
[1742136417517,0.312025,83155.0,83154.0,0.00146232]
[1742136421757,0.012027,83140.0,83137.0,0.0003382]
[1742136421955,0.012027,83140.0,83137.0,0.00075077]
[1742136421956,0.012028,83138.0,83137.0,0.00075077]
[1742136422888,0.252575,83144.0,83138.0,0.240562]
[1742136423097,0.3,83144.0,83137.0,0.01277877]
[1742136423322,0.3,83144.0,83139.0,0.240559]
[1742136423518,0.3,83144.0,83141.0,0.240552]
[1742136423832,0.02439476,83143.0,83140.0,0.252582]
[1742136424167,0.3,83144.0,83140.0,0.252582]
[1742136424168,0.06144843,83144.0,83140.0,0.252582]
[1742136424567,0.252572,83145.0,83140.0,0.252582]
[1742136425047,0.252569,83146.0,83141.0,0.25258]
[1742136425379,0.16084119,83151.0,83149.0,0.240529]
[1742136425718,0.012025,83156.0,83149.0,0.0798]
[1742136425719,0.240524,83152.0,83149.0,0.0798]
[1742136426150,0.240524,83152.0,83149.0,0.0788]
[1742136426740,0.27703558,83151.0,83149.0,0.0788]
[1742136427717,0.012026,83150.0,83149.0,0.0788]
[1742136428624,0.02448158,83151.0,83150.0,0.012026]
[1742136429874,0.0001692,83152.0,83151.0,0.252552]
[1742136430310,0.0083542,83156.0,83151.0,0.252552]
[1742136430511,0.240516,83155.0,83150.0,0.012026]
[1742136430955,0.240516,83155.0,83150.0,0.252553]
[1742136431166,0.24052,83153.0,83148.0,0.252558]
[1742136431336,0.012027,83146.0,83141.0,0.088927]
[1742136431536,0.012026,83148.0,83142.0,0.012027]
[1742136431784,0.240511,83157.0,83147.0,0.240537]
[1742136431984,0.012026,83153.0,83145.0,0.24054]
[1742136432186,0.24053,83150.0,83145.0,0.24054]
[1742136432507,0.540525,83152.0,83146.0,0.240539]
[1742136433054,0.240527,83151.0,83146.0,0.240539]
[1742136433455,0.252553,83151.0,83146.0,0.240539]
[1742136433670,0.012026,83151.0,83146.0,0.252566]
[1742136433883,0.3,83152.0,83151.0,0.012026]
[1742136434102,0.3,83152.0,83151.0,0.090226]
[1742136435378,0.3,83152.0,83151.0,0.0782]
[1742136435590,0.312026,83152.0,83151.0,0.0782]
[1742136435917,0.312026,83152.0,83142.0,0.240551]
[1742136435918,0.012026,83147.0,83145.0,0.0782]
[1742136436129,0.012027,83146.0,83145.0,0.0782]
[1742136437140,0.012027,83146.0,83145.0,0.001]
[1742136437348,0.012027,83146.0,83145.0,0.002]
[1742136437574,0.012027,83146.0,83145.0,0.001]
[1742136437821,0.11855479,83146.0,83145.0,0.001]
[1742136437990,0.012027,83146.0,83145.0,0.002]
[1742136438899,0.012027,83146.0,83139.0,0.0782]
[1742136438900,0.240539,83147.0,83143.0,0.252576]
[1742136439191,0.240542,83146.0,83142.0,0.012027]
[1742136439394,0.240548,83144.0,83140.0,0.012027]
[1742136439735,0.252573,83145.0,83140.0,0.252583]
[1742136439875,0.252565,83147.0,83142.0,0.012027]
[1742136440074,0.240548,83144.0,83140.0,0.012027]
[1742136440287,0.240558,83140.0,83137.0,0.04585077]
[1742136440483,0.240563,83138.0,83137.0,0.04585077]
[1742136440693,0.252591,83138.0,83137.0,0.00075077]
[1742136441421,0.252591,83138.0,83137.0,0.00275077]
[1742136442054,0.252591,83138.0,83137.0,0.00075077]
[1742136442492,0.252591,83138.0,83137.0,0.00175077]
[1742136442836,0.252591,83138.0,83137.0,0.00075077]
[1742136443040,0.252591,83138.0,83137.0,0.00275077]
[1742136443172,0.252591,83138.0,83137.0,0.00475077]
[1742136445384,0.58184641,83138.0,83137.0,0.00475077]
[1742136445563,0.58184641,83138.0,83137.0,0.00275077]
[1742136445925,0.58184641,83138.0,83137.0,0.00375077]
[1742136446134,0.252609,83133.0,83127.0,0.23602137]
[1742136446345,0.240583,83132.0,83127.0,0.23606265]
[1742136446690,0.252609,83133.0,83128.0,0.24059]
[1742136446890,0.252609,83133.0,83128.0,0.012029]
[1742136447352,0.012028,83133.0,83128.0,0.25262]
[1742136448327,0.252607,83133.0,83128.0,0.240591]
[1742136448762,0.252607,83133.0,83128.0,0.241591]
[1742136449077,0.252611,83132.0,83128.0,0.001]
[1742136449311,0.252611,83132.0,83128.0,0.002]
[1742136449710,0.02412023,83129.0,83128.0,0.002]
[1742136449894,0.02412023,83129.0,83128.0,0.001]
[1742136450327,0.03614923,83129.0,83128.0,0.002]
[1742136450497,0.240592,83128.0,83127.0,4.128e-05]
[1742136450698,0.252621,83128.0,83127.0,4.128e-05]
[1742136451320,0.552621,83128.0,83127.0,4.128e-05]
[1742136451637,0.3,83128.0,83127.0,4.128e-05]
[1742136451872,0.03374036,83129.0,83127.0,0.00304128]
[1742136451984,0.01880486,83129.0,83128.0,0.002]
[1742136452189,0.01880486,83129.0,83127.0,4.128e-05]
[1742136452594,0.01880486,83129.0,83127.0,0.00304128]
[1742136453142,0.01880486,83129.0,83127.0,0.00204128]
[1742136453354,0.01880486,83129.0,83128.0,0.001]
[1742136453561,0.01880486,83129.0,83127.0,0.00204128]
[1742136453965,0.25939586,83129.0,83127.0,0.00104128]
[1742136454321,0.01880486,83129.0,83127.0,0.00204128]
[1742136454711,0.01880486,83129.0,83127.0,0.24280448]
[1742136454920,0.01914326,83129.0,83127.0,0.24280448]
[1742136455121,0.01914326,83129.0,83127.0,0.24180448]
[1742136455382,0.240592,83128.0,83127.0,0.00121048]
[1742136455515,0.01914326,83129.0,83128.0,0.001]
[1742136455719,0.03117226,83129.0,83128.0,0.001]
[1742136456121,0.01914326,83129.0,83128.0,0.001]
[1742136456318,0.01914326,83129.0,83128.0,0.240592]
[1742136456728,0.01914326,83129.0,83127.0,0.01323948]
[1742136456729,0.01914326,83129.0,83127.0,0.00221048]
[1742136456937,0.01914326,83129.0,83127.0,0.00021048]
[1742136457338,0.01914326,83129.0,83127.0,0.00221048]
[1742136457541,0.27176426,83129.0,83127.0,0.00221048]
[1742136457897,0.012029,83128.0,83127.0,0.00021048]
[1742136458274,0.012029,83128.0,83127.0,0.00121048]
[1742136458612,0.27176426,83129.0,83127.0,0.00121048]
[1742136458759,0.27176426,83129.0,83127.0,0.00021048]